bitfinex/quotes_ETHUSD_20250420
["timestamp","ask_amount","ask_price","bid_price","bid_amount"]
[1745191492178,13.83140485,1582.0,1581.9,5.367]
[1745191494195,10.98582463,1582.0,1581.9,5.367]
[1745191504090,6.74523749,1582.0,1581.9,5.367]
[1745191505085,3.74523749,1582.0,1581.9,6.1072]
[1745191505985,3.39092442,1582.0,1581.9,6.1072]
[1745191509601,0.35431307,1582.1,1581.9,6.1072]
[1745191510103,4.25387883,1582.2,1581.9,6.1072]
[1745191510796,4.60805836,1582.2,1581.9,6.1072]
[1745191513327,4.25387883,1582.2,1581.9,6.1072]
[1745191513504,0.81819366,1582.3,1581.9,6.1072]
[1745191513505,5.07207249,1582.3,1581.9,6.1072]
[1745191513698,4.60805836,1582.3,1581.9,5.367]
[1745191513905,4.60805836,1582.3,1582.0,1.2769]
[1745191516027,0.35417953,1582.3,1582.0,1.2769]
[1745191517525,4.72054044,1582.4,1582.0,1.2769]
[1745191517526,5.07471997,1582.4,1582.0,1.2769]
[1745191519426,3.82084114,1582.4,1582.0,1.2769]
[1745191523033,7.62353825,1582.4,1582.0,0.7402]
[1745191523338,1.17007953,1582.3,1581.9,6.1072]
[1745191525724,1.17007953,1582.3,1582.0,54.135]
[1745191527106,1.24908186,1582.3,1582.0,54.135]
[1745191528873,0.8159,1582.1,1582.0,54.135]
[1745191529067,1.31317766,1582.1,1582.0,59.465]
[1745191529252,1.39219099,1582.1,1582.0,59.465]
[1745191529923,1.74637052,1582.1,1582.0,59.465]
[1745191530460,0.85145719,1582.1,1582.0,59.465]
[1745191530862,0.35417953,1582.1,1582.0,59.465]
[1745191532463,2.18854848,1582.1,1582.0,54.135]
[1745191532650,5.18854848,1582.1,1582.0,59.465]
[1745191533026,18.96226145,1582.1,1582.0,54.135]
[1745191533243,18.88324963,1582.1,1582.0,59.465]
[1745191533444,21.57918029,1582.1,1582.0,59.465]
[1745191534776,6.32180209,1581.9,1581.4,0.7402]
[1745191534993,8.9194441,1581.8,1581.5,54.141]
[1745191535200,5.10953666,1581.7,1581.5,59.472]
[1745191535493,3.35417953,1581.7,1581.5,59.472]
[1745191535675,5.0911389,1581.7,1581.5,59.472]
[1745191535881,15.21897317,1581.7,1581.5,59.472]
[1745191536097,15.13993731,1581.7,1581.5,59.472]
[1745191536255,0.07903804,1581.6,1581.5,54.141]
[1745191536459,12.31890816,1581.6,1581.5,59.472]
[1745191536685,12.67308769,1581.6,1581.5,59.472]
[1745191536901,6.27133848,1581.6,1581.5,59.472]
[1745191537079,6.35037916,1581.6,1581.5,59.472]
[1745191537662,5.58737916,1581.6,1581.5,59.472]
[1745191540399,5.23319963,1581.6,1581.5,59.472]
[1745191542168,5.58614781,1581.6,1581.5,59.472]
[1745191543917,5.23319963,1581.6,1581.5,59.472]
[1745191545018,3.0,1581.6,1581.5,59.472]
[1745191546134,0.47484049,1581.7,1581.5,59.472]
[1745191546323,0.47484049,1581.7,1581.5,60.2122]
[1745191546526,6.14,1581.8,1581.5,60.2122]
[1745191546818,6.61671496,1581.8,1581.5,60.2122]
[1745191546986,0.47671496,1581.8,1581.5,60.2122]
[1745191547185,4.25387883,1581.9,1581.5,60.2122]
[1745191547420,7.25387883,1581.9,1581.5,60.2122]
[1745191547627,7.33290467,1581.9,1581.5,60.2122]
[1745191548718,3.07902584,1581.9,1581.5,60.2122]
[1745191550735,3.0,1581.9,1581.5,60.2122]
[1745191550937,6.21902362,1582.0,1581.6,0.7402]
[1745191551116,6.57183638,1582.0,1581.6,0.7402]
[1745191551606,7.0477939,1582.0,1581.6,0.7402]
[1745191551936,6.69498114,1582.0,1581.6,0.7402]
[1745191553920,0.55498114,1582.0,1581.6,0.7402]
[1745191554646,0.90813921,1582.0,1581.6,0.7402]
[1745191560510,0.90813527,1582.0,1581.6,0.7402]
[1745191561657,0.35315807,1581.9,1581.6,0.7402]
[1745191563126,0.35315807,1581.8,1581.6,0.7402]
[1745191563327,0.35315807,1581.8,1581.5,59.472]
[1745191563536,7.92116526,1581.8,1581.5,54.141]
[1745191563740,3.0,1581.7,1581.6,5.33]
[1745191563939,3.35315807,1581.7,1581.6,5.33]
[1745191564244,3.35315807,1581.7,1581.5,54.141]
[1745191564445,3.35315807,1581.7,1581.6,5.331]
[1745191564652,5.07749591,1581.7,1581.6,5.331]
[1745191564860,5.07835226,1581.7,1581.6,5.331]
[1745191565939,5.15738747,1581.7,1581.6,5.331]
[1745191568692,0.35401442,1581.7,1581.6,5.331]
[1745191568973,0.35401442,1581.7,1581.6,6.0712]
[1745191569451,6.49401442,1581.8,1581.6,6.0712]
[1745191570465,6.14,1581.8,1581.6,6.0712]
[1745191571361,0.35401442,1581.9,1581.6,6.0712]
[1745191572555,0.35401442,1581.9,1581.7,0.7402]
[1745191573760,0.35401442,1581.9,1581.8,54.151]
[1745191573960,0.35401442,1581.9,1581.8,54.8912]
[1745191574328,4.25387883,1582.1,1581.9,0.7402]
[1745191574558,4.25387883,1582.1,1582.0,5.331]
[1745191577658,0.35398124,1582.2,1582.0,5.331]
[1745191577956,0.90066381,1582.3,1582.0,5.331]
[1745191578552,0.82165424,1582.3,1582.0,5.331]
[1745191578747,0.82165424,1582.3,1582.0,5.93812]
[1745191579484,0.82165424,1582.3,1582.0,5.331]
[1745191581076,0.90065912,1582.3,1582.0,5.331]
[1745191581474,3.90065912,1582.3,1582.0,5.331]
[1745191588967,3.82165424,1582.3,1582.1,0.7402]
[1745191589166,0.82165424,1582.3,1582.1,0.7402]
[1745191589543,0.82165424,1582.3,1582.2,54.139]
[1745191589779,1.59745424,1582.3,1582.2,54.139]
[1745191589949,2.37909968,1582.3,1582.2,54.139]
[1745191592277,2.45810102,1582.3,1582.2,54.139]
[1745191595476,1.60329968,1582.3,1582.2,54.139]
[1745191595668,0.82165424,1582.3,1582.2,54.139]
[1745191599081,0.82165424,1582.3,1582.2,59.467]
[1745191600090,0.35398124,1582.3,1582.2,59.467]
[1745191617313,2.10884441,1582.3,1582.2,59.467]
[1745191619114,0.35398124,1582.3,1582.2,59.467]
[1745191619405,7.998968,1582.3,1582.2,59.467]
[1745191623193,7.64498676,1582.3,1582.2,59.467]
[1745191623716,7.64498676,1582.3,1582.2,59.465]
[1745191624487,7.99959404,1582.3,1582.2,59.465]
[1745191625997,7.99959404,1582.3,1582.2,54.139]
[1745191626200,7.99959404,1582.3,1582.2,59.465]
[1745191626580,0.35460728,1582.3,1582.2,59.465]
[1745191629276,4.60848611,1582.3,1582.2,59.465]
[1745191629875,16.17491469,1582.3,1582.2,59.465]
[1745191630411,9.85500065,1582.3,1582.2,59.465]
[1745191630778,19.17491469,1582.3,1582.2,59.465]
[1745191632320,14.92103586,1582.3,1582.2,59.465]
[1745191632495,18.31335998,1582.3,1582.2,59.465]
[1745191632902,18.31335998,1582.3,1581.7,0.7402]
[1745191633191,18.31335998,1582.3,1582.2,54.134]
[1745191633395,18.31335998,1582.3,1582.2,59.46]
[1745191634711,18.31335998,1582.3,1582.2,59.461]
[1745191635821,14.92103586,1582.3,1582.2,59.461]
[1745191638429,18.31224822,1582.3,1582.2,59.461]
[1745191640232,8.18985736,1582.3,1582.2,59.461]
[1745191640412,14.58877817,1582.3,1582.2,59.461]
[1745191640612,14.5097714,1582.3,1582.2,59.461]
[1745191643240,18.7621818,1582.3,1582.2,59.461]
[1745191647742,14.5097714,1582.3,1582.2,59.461]
[1745191648646,6.74581964,1582.3,1582.2,59.461]
[1745191650150,3.35460728,1582.3,1582.2,59.461]
[1745191651049,5.92859871,1582.3,1582.2,59.461]
[1745191651372,12.24851275,1582.3,1582.2,59.461]
[1745191652755,19.89186253,1582.3,1582.2,59.461]
[1745191653050,22.56019515,1582.3,1582.2,59.461]
[1745191654162,16.24028111,1582.3,1582.2,59.461]
[1745191654454,22.56019515,1582.3,1582.2,59.461]
[1745191654655,23.11019515,1582.3,1582.2,54.134]
[1745191654859,23.11019515,1582.3,1582.2,59.459]
[1745191656655,29.25019515,1582.3,1582.2,59.459]
[1745191658159,24.99805773,1582.3,1582.2,59.459]
[1745191658457,9.32045559,1582.2,1582.1,54.142]
[1745191658658,14.94091953,1582.2,1582.1,59.467]
[1745191658857,14.86190563,1582.2,1582.1,59.467]
[1745191659157,14.86190563,1582.2,1582.1,54.142]
[1745191659461,14.86190563,1582.2,1582.1,59.467]
[1745191661161,8.54145004,1582.2,1582.1,59.467]
[1745191661357,6.86547247,1582.2,1582.1,54.142]
[1745191661565,8.6204639,1582.2,1582.1,59.467]
[1745191662466,14.7604639,1582.2,1582.1,59.467]
[1745191662631,14.68145004,1582.2,1582.1,59.467]
[1745191662832,18.0726624,1582.2,1582.1,59.467]
[1745191663465,18.0726624,1582.2,1582.1,54.142]
[1745191663635,18.0726624,1582.2,1582.1,59.467]
[1745191665641,22.32336236,1582.2,1582.1,59.467]
[1745191666554,28.64367584,1582.2,1582.1,59.467]
[1745191667369,29.97927584,1582.2,1582.1,59.467]
[1745191672981,25.72857588,1582.2,1582.1,59.467]
[1745191676188,27.48356731,1582.2,1582.1,59.467]
[1745191676356,27.48356731,1582.2,1582.1,59.468]
[1745191679394,9.32131718,1582.0,1581.9,54.148]
[1745191679596,12.71955112,1582.0,1581.9,59.474]
[1745191679757,12.99513674,1582.0,1581.9,59.474]
[1745191682606,13.46187198,1582.0,1581.9,59.474]
[1745191682898,19.60187198,1582.0,1581.9,59.474]
[1745191683200,9.96134252,1582.0,1581.9,59.474]
[1745191684900,17.6024241,1582.0,1581.9,59.474]
[1745191688699,11.4624241,1582.0,1581.9,59.474]
[1745191688864,11.54144275,1582.0,1581.9,59.474]
[1745191695506,11.4624241,1582.0,1581.9,59.474]
[1745191695905,11.5414425,1582.0,1581.9,59.474]
[1745191697622,21.25957373,1582.0,1581.9,59.474]
[1745191697771,21.18055533,1582.0,1581.9,59.474]
[1745191699420,21.73055533,1582.0,1581.9,59.472]
[1745191700407,27.87055533,1582.0,1581.9,59.472]
[1745191701208,29.62554676,1582.0,1581.9,59.472]
[1745191702111,25.37567754,1582.0,1581.9,59.472]
[1745191702409,9.32196835,1581.8,1581.7,54.15]
[1745191702612,12.72034042,1581.8,1581.7,59.474]
[1745191702812,12.64130998,1581.8,1581.7,59.474]
[1745191703226,12.99591726,1581.8,1581.7,59.474]
[1745191704206,6.67394891,1581.8,1581.7,59.474]
[1745191704409,3.4336377,1581.8,1581.7,59.474]
[1745191705981,3.35460728,1581.8,1581.7,60.2142]
[1745191706681,3.0,1581.8,1581.7,60.2142]
[1745191707414,10.64373328,1581.8,1581.7,60.2142]
[1745191707784,7.64373328,1581.8,1581.7,60.2142]
[1745191709713,0.35460728,1581.9,1581.7,60.2142]
[1745191710679,8.44074482,1582.0,1581.7,60.2142]
[1745191712227,11.07653569,1581.9,1581.7,60.2142]
[1745191712394,4.75499143,1581.9,1581.7,59.474]
[1745191712589,0.35439607,1581.8,1581.7,59.474]
[1745191723689,1.9227448,1581.8,1581.7,54.15]
[1745191723893,1.9227448,1581.8,1581.7,59.472]
[1745191727327,2.00177405,1581.8,1581.7,59.472]
[1745191728433,10.07867722,1581.8,1581.7,59.472]
[1745191728600,13.87367722,1581.8,1581.7,59.472]
[1745191728795,20.48464797,1581.8,1581.7,59.472]
[1745191730728,23.87684569,1581.8,1581.7,59.472]
[1745191732230,6.322523,1581.7,1581.6,54.154]
[1745191732433,11.176487,1581.7,1581.6,59.476]
[1745191733130,11.53088307,1581.7,1581.6,59.476]
[1745191736340,12.87588307,1581.7,1581.6,59.476]
[1745191736530,12.79684737,1581.7,1581.6,54.154]
[1745191736710,12.79684737,1581.7,1581.6,59.477]
[1745191737046,19.18904509,1581.7,1581.6,59.477]
[1745191737546,16.88405366,1581.7,1581.6,59.477]
[1745191737702,6.74659379,1581.7,1581.6,59.477]
[1745191737906,6.82562691,1581.7,1581.6,59.477]
[1745191738212,14.90292977,1581.7,1581.6,59.477]
[1745191738420,14.82389665,1581.7,1581.6,59.477]
[1745191739027,16.16889665,1581.7,1581.6,59.477]
[1745191739228,19.18881236,1581.7,1581.6,59.477]
[1745191740021,23.43834523,1581.7,1581.6,59.477]
[1745191740204,22.09334523,1581.7,1581.6,59.477]
[1745191740735,12.75111809,1581.7,1581.6,59.477]
[1745191740938,10.99612666,1581.7,1581.6,59.477]
[1745191741803,17.31843809,1581.7,1581.6,59.477]
[1745191742953,19.07342952,1581.7,1581.6,59.477]
[1745191751858,12.75111809,1581.7,1581.6,59.477]
[1745191752159,10.99612666,1581.7,1581.6,59.477]
[1745191752362,11.07515843,1581.7,1581.6,59.484]
[1745191753559,17.39746986,1581.7,1581.6,59.484]
[1745191753762,17.31843809,1581.7,1581.6,59.484]
[1745191755364,10.99612666,1581.7,1581.6,59.484]
[1745191755566,11.07515842,1581.7,1581.6,59.484]
[1745191756774,13.60439023,1581.7,1581.6,59.484]
[1745191757065,20.5976699,1581.7,1581.6,59.484]
[1745191760873,19.8476699,1581.7,1581.6,59.484]
[1745191761570,10.99612666,1581.7,1581.6,59.484]
[1745191761754,10.99612666,1581.7,1581.6,60.2242]
[1745191764377,7.99612666,1581.7,1581.6,60.2242]
[1745191764674,11.07516239,1581.7,1581.6,59.484]
[1745191764868,17.39747382,1581.7,1581.6,59.484]
[1745191765173,20.47988306,1581.7,1581.6,59.484]
[1745191765545,12.83815247,1581.7,1581.6,59.484]
[1745191766977,14.18655247,1581.7,1581.6,54.163]
[1745191767178,14.18655247,1581.7,1581.6,59.484]
[1745191767752,15.9415439,1581.7,1581.6,59.484]
[1745191768778,20.19107677,1581.7,1581.6,59.484]
[1745191769478,18.43608534,1581.7,1581.6,59.484]
[1745191770884,24.57608534,1581.7,1581.6,59.484]
[1745191772146,23.71799805,1581.7,1581.6,59.484]
[1745191773375,6.32274989,1581.6,1581.5,54.162]
[1745191773575,6.75618743,1581.6,1581.5,59.481]
[1745191773877,9.76816637,1581.6,1581.5,59.481]
[1745191775069,10.24699555,1581.6,1581.5,59.481]
[1745191777783,13.63844113,1581.6,1581.5,59.481]
[1745191777985,13.55939966,1581.6,1581.5,59.481]
[1745191782593,4.22467083,1581.6,1581.5,59.481]
[1745191782897,4.3037097,1581.6,1581.5,59.481]
[1745191785690,8.56020499,1581.6,1581.5,59.481]
[1745191788808,4.3037097,1581.6,1581.5,59.481]
[1745191793616,8.56030556,1581.6,1581.5,59.481]
[1745191794012,17.88301673,1581.6,1581.5,59.481]
[1745191794224,17.80397786,1581.6,1581.5,59.481]
[1745191796720,20.90803679,1581.6,1581.5,59.481]
[1745191797522,16.65144093,1581.6,1581.5,59.481]
[1745191799188,10.32872976,1581.6,1581.5,59.481]
[1745191799389,10.40776839,1581.6,1581.5,59.481]
[1745191800520,7.30370946,1581.6,1581.5,59.481]
[1745191803525,6.94931339,1581.6,1581.5,59.481]
[1745191803702,7.30433046,1581.6,1581.5,59.481]
[1745191806025,13.62704163,1581.6,1581.5,59.481]
[1745191806197,14.315803,1581.6,1581.5,59.481]
[1745191806397,16.37961444,1581.6,1581.5,59.481]
[1745191807028,10.05690327,1581.6,1581.5,59.481]
[1745191807225,7.30433162,1581.6,1581.5,59.481]
[1745191808228,7.22529183,1581.6,1581.5,59.481]
[1745191810830,11.48180839,1581.6,1581.5,59.481]
[1745191814835,8.00297921,1581.6,1581.5,59.481]
[1745191815038,8.00297921,1581.6,1581.5,60.2212]
[1745191818209,7.64796214,1581.6,1581.5,60.2212]
[1745191822133,4.25651656,1581.8,1581.6,0.7402]
[1745191826153,0.83042647,1582.0,1581.6,0.7402]
[1745191826918,0.90944423,1582.0,1581.6,0.7402]
[1745191827113,2.66584779,1582.0,1581.6,0.7402]
[1745191832258,0.90944423,1582.0,1581.6,0.7402]
[1745191832925,0.90944423,1582.0,1581.7,5.316]
[1745191834560,0.83042647,1582.0,1581.7,5.316]
[1745191835241,0.90944434,1582.0,1581.7,5.316]
[1745191835641,0.83042647,1582.0,1581.7,5.316]
[1745191837771,0.83042647,1582.0,1581.8,54.149]
[1745191839552,0.83042647,1582.0,1581.8,54.8892]
[1745191839753,0.35413832,1582.0,1581.8,54.8892]
[1745191840454,4.61065488,1582.2,1581.8,54.8892]
[1745191841243,0.35413832,1582.1,1581.8,54.8892]
[1745191842095,4.61065488,1582.2,1581.8,54.8892]
[1745191842879,0.35413832,1582.1,1581.8,54.8892]
[1745191846965,0.35413832,1582.1,1581.9,0.7402]
[1745191848466,0.35413832,1582.1,1582.0,5.314]
[1745191848786,0.35413832,1582.2,1582.0,5.314]
[1745191849687,8.52524133,1582.3,1582.0,5.314]
[1745191849688,0.35413832,1582.1,1582.0,5.314]
[1745191850356,0.35413832,1582.2,1582.0,5.314]
[1745191850559,0.35413832,1582.2,1582.1,0.5314]
[1745191851757,0.35413832,1582.2,1582.0,5.314]
[1745191851957,0.35413832,1582.2,1581.9,6.54389059]
[1745191852280,2.11054188,1582.2,1582.0,5.314]
[1745191854863,2.11054188,1582.2,1582.1,54.143]
[1745191869119,2.11054188,1582.2,1582.1,59.454]
[1745191875011,3.08842244,1582.2,1582.1,54.143]
[1745191875195,3.08842244,1582.2,1582.1,59.454]
[1745191877158,2.11054188,1582.2,1582.1,59.454]
[1745191877316,9.75575413,1582.2,1582.1,59.454]
[1745191880367,2.11054188,1582.2,1582.1,59.454]
[1745191883044,8.50986162,1582.2,1582.1,59.454]
[1745191883214,2.18954814,1582.2,1582.1,59.454]
[1745191887159,2.11054188,1582.2,1582.1,59.454]
[1745191889154,9.75938354,1582.2,1582.1,59.454]
[1745191901672,8.00297998,1582.2,1582.1,60.1942]
[1745191902238,7.64884166,1582.2,1582.1,60.1942]
[1745191905978,9.40524522,1582.6,1582.1,60.1942]
[1745191906676,9.40524522,1582.6,1582.2,0.7402]
[1745191906881,7.64884166,1582.6,1582.2,0.7402]
[1745191908838,3.0,1582.6,1582.2,0.7402]
[1745191909748,3.35362668,1582.6,1582.2,0.7402]
[1745191912188,0.35362668,1582.6,1582.2,0.7402]
[1745191912561,6.56476229,1582.7,1582.2,0.7402]
[1745191912753,6.48577583,1582.7,1582.2,0.7402]
[1745191913369,6.5647622,1582.7,1582.2,0.7402]
[1745191913751,6.48577583,1582.7,1582.2,0.7402]
[1745191913957,6.56476221,1582.7,1582.2,0.7402]
[1745191915695,6.56476221,1582.7,1582.3,5.308]
[1745191915896,6.48577583,1582.7,1582.4,0.7402]
[1745191916693,4.25651656,1582.7,1582.4,0.7402]
[1745191916898,6.01292012,1582.7,1582.4,0.7402]
[1745191917193,6.3663386,1582.7,1582.4,0.7402]
[1745191919299,1.75640356,1582.5,1582.2,0.7402]
[1745191919476,1.75640356,1582.4,1582.3,5.308]
[1745191919677,1.75640356,1582.5,1582.3,5.308]
[1745191922589,1.75640356,1582.5,1582.4,54.129]
[1745191922775,2.95321501,1582.6,1582.4,54.129]
[1745191924112,2.59979653,1582.6,1582.4,54.129]
[1745191924417,0.07899297,1582.6,1582.4,54.129]
[1745191924597,10.21183068,1582.7,1582.4,54.8692]
[1745191924799,7.60993504,1582.7,1582.4,54.8692]
[1745191924983,0.35341848,1582.6,1582.4,54.8692]
[1745191926721,5.10982204,1582.7,1582.4,54.8692]
[1745191927519,5.10982204,1582.7,1582.5,5.305]
[1745191928322,5.87632204,1582.7,1582.5,5.305]
[1745191929429,0.35341848,1582.7,1582.5,5.305]
[1745191930423,0.35341848,1582.6,1582.5,5.305]
[1745191930618,0.35341848,1582.6,1582.5,6.0452]
[1745191930831,0.35341848,1582.6,1582.5,11.84889059]
[1745191931392,4.25651656,1582.8,1582.6,0.7402]
[1745191932206,4.25651656,1582.9,1582.6,0.7402]
[1745191932822,4.25651656,1582.9,1582.6,1.92508906]
[1745191933532,4.60993504,1582.9,1582.6,1.92508906]
[1745191934027,4.25651656,1582.9,1582.6,1.92508906]
[1745191936019,1.75640356,1583.0,1582.6,1.92508906]
[1745191942952,1.75640356,1582.7,1582.5,6.54389059]
[1745191943135,11.07540037,1582.6,1582.4,54.129]
[1745191943340,2.65439567,1582.5,1582.4,54.129]
[1745191943526,2.65439567,1582.5,1582.4,59.433]
[1745191943727,12.87727482,1582.5,1582.4,54.129]
[1745191943921,14.71790987,1582.5,1582.4,59.433]
[1745191944512,14.71790987,1582.5,1582.4,54.129]
[1745191944714,14.71790987,1582.5,1582.4,59.433]
[1745191944924,15.18490384,1582.5,1582.4,59.433]
[1745191945344,17.23204244,1582.5,1582.4,59.433]
[1745191946945,23.37204244,1582.5,1582.4,59.433]
[1745191948048,23.37204244,1582.5,1582.4,54.129]
[1745191948217,23.37204244,1582.5,1582.4,59.434]
[1745191949752,31.00980737,1582.5,1582.4,59.434]
[1745191950454,6.32025753,1582.3,1582.1,54.13]
[1745191950613,3.07901092,1582.2,1582.1,54.13]
[1745191950813,3.07901092,1582.2,1582.1,59.435]
[1745191951428,3.0,1582.2,1582.1,59.435]
[1745191963768,3.07900462,1582.2,1582.1,59.435]
[1745191964073,9.9493181,1582.2,1582.1,54.13]
[1745191964233,12.84905412,1582.2,1582.1,59.434]
[1745191964571,12.7700495,1582.2,1582.1,59.434]
[1745191964927,13.12248668,1582.2,1582.1,59.434]
[1745191966660,13.12248668,1582.2,1582.1,54.13]
[1745191966861,13.12248668,1582.2,1582.1,59.434]
[1745191967459,0.35243718,1582.2,1582.1,59.434]
[1745191967855,3.35243718,1582.2,1582.1,59.434]
[1745191968050,3.07900969,1582.2,1582.1,59.434]
[1745191968531,9.39932317,1582.2,1582.1,59.434]
[1745191969264,10.5740357,1582.2,1582.1,59.434]
[1745191969469,11.1240357,1582.2,1582.1,59.434]
[1745191969768,13.24881348,1582.2,1582.1,59.434]
[1745191969938,13.16980379,1582.2,1582.1,59.434]
[1745191971368,13.16980379,1582.2,1582.1,5.304]
[1745191973279,6.32071297,1582.1,1582.0,54.143]
[1745191973436,10.20326968,1582.1,1582.0,59.448]
[1745191973873,10.55618221,1582.1,1582.0,59.448]
[1745191977556,11.03544234,1582.1,1582.0,59.448]
[1745191977950,16.75819792,1582.1,1582.0,54.143]
[1745191978271,17.50098337,1582.1,1582.0,59.448]
[1745191979075,23.64098337,1582.1,1582.0,59.448]
[1745191986891,23.64098337,1582.1,1582.0,54.143]
[1745191987058,6.87298767,1581.6,1581.5,54.151]
[1745191987386,6.87298767,1581.6,1581.5,59.456]
[1745191987957,7.304941,1581.6,1581.5,59.456]
[1745191988868,10.304941,1581.6,1581.5,59.456]
[1745191989394,6.32431065,1581.2,1581.1,0.1]
[1745191989570,15.52724738,1581.2,1581.1,5.404]
[1745191989758,15.44818388,1581.2,1581.1,5.404]
[1745191990373,15.80109641,1581.2,1581.1,5.404]
[1745191990569,15.80109641,1581.2,1581.1,0.1]
[1745191990772,1.3329,1580.8,1580.6,5.304]
[1745191990961,3.55,1580.6,1580.4,0.7402]
[1745191991184,0.07909579,1580.5,1580.4,0.7402]
[1745191991482,3.0,1580.6,1580.4,5.304]
[1745191991787,3.0,1580.6,1580.5,0.7402]
[1745191992193,9.32671137,1580.6,1580.4,6.0442]
[1745191992358,9.4057987,1580.6,1580.4,6.0442]
[1745191992558,13.20934086,1580.6,1580.4,6.0442]
[1745191992759,9.9562045,1580.5,1580.4,5.304]
[1745191992971,12.2648503,1580.5,1580.4,5.304]
[1745191993485,12.73046679,1580.5,1580.4,5.304]
[1745191993665,12.65137396,1580.5,1580.4,5.304]
[1745191995159,3.46561649,1580.5,1580.4,5.304]
[1745191995359,3.0,1580.5,1580.4,6.0442]
[1745191996309,9.32711167,1580.5,1580.4,6.0442]
[1745191996484,13.13065383,1580.5,1580.4,5.304]
[1745191997160,13.59911953,1580.5,1580.4,5.304]
[1745191999504,12.46605718,1580.8,1580.5,0.7402]
[1745191999703,13.01965572,1580.8,1580.5,0.7402]
[1745192000008,6.32634048,1580.7,1580.5,0.7402]
[1745192000905,0.07908645,1580.6,1580.4,5.304]
[1745192001062,6.4059441,1580.6,1580.4,5.304]
[1745192001407,3.0,1580.4,1580.2,54.9012]
[1745192001572,3.0,1580.4,1580.3,5.307]
[1745192002272,3.07910019,1580.6,1580.3,5.307]
[1745192002603,12.94059851,1580.8,1580.4,0.7402]
[1745192002789,3.07908542,1580.7,1580.4,0.7402]
[1745192004197,9.40550109,1580.7,1580.4,0.7402]
[1745192004401,11.02611105,1580.7,1580.4,0.7402]
[1745192005203,14.82965321,1580.7,1580.4,0.7402]
[1745192005520,14.75071739,1580.7,1580.4,0.7402]
[1745192006399,10.94717523,1580.7,1580.4,0.7402]
[1745192006703,0.07909176,1580.6,1580.4,0.7402]
[1745192006877,11.02626699,1580.7,1580.4,0.7402]
[1745192008060,1.1026267,1580.6,1580.4,0.7402]
[1745192010416,11.02626699,1580.7,1580.4,0.7402]
[1745192010618,3.0,1580.7,1580.4,0.7402]
[1745192010969,0.07909013,1580.6,1580.4,0.7402]
[1745192011169,0.07909013,1580.6,1580.3,5.307]
[1745192011370,0.87899013,1580.6,1580.3,5.307]
[1745192011670,1.89952821,1580.6,1580.3,5.307]
[1745192013056,8.22631127,1580.6,1580.3,5.307]
[1745192013649,1.89952821,1580.6,1580.3,5.307]
[1745192013951,10.21878089,1580.7,1580.3,5.307]
[1745192014855,6.14,1581.0,1580.4,0.7402]
[1745192015143,3.0,1581.0,1580.4,0.7402]
[1745192015305,0.55,1581.0,1580.4,0.7402]
[1745192015852,3.55,1581.0,1580.4,0.7402]
[1745192017335,8.34893841,1581.0,1580.4,0.7402]
[1745192017636,0.35338096,1580.9,1580.4,0.7402]
[1745192020533,0.35338096,1580.8,1580.4,0.7402]
[1745192021724,0.35338096,1580.9,1580.4,0.7402]
[1745192026040,0.35338096,1580.9,1580.4,5.80369059]
[1745192026338,0.35338096,1580.9,1580.5,1.32056906]
[1745192026539,0.35338096,1580.9,1580.6,0.7402]
[1745192026738,0.35338096,1580.9,1580.7,5.307]
[1745192027129,0.54199867,1581.0,1580.7,5.307]
[1745192027130,0.89537963,1581.0,1580.7,5.307]
[1745192028139,0.8163094,1581.0,1580.7,5.307]
[1745192028845,0.8163094,1581.0,1580.8,0.7402]
[1745192029545,0.8163094,1581.0,1580.9,54.189]
[1745192031631,0.46292844,1581.0,1580.9,54.189]
[1745192031853,3.43244434,1581.1,1580.9,54.189]
[1745192032061,4.64320591,1581.1,1580.9,54.189]
[1745192032962,5.1261922,1581.1,1580.9,54.189]
[1745192034343,0.91543063,1581.1,1580.9,54.189]
[1745192035446,0.83636725,1581.1,1580.9,54.189]
[1745192037292,0.83636725,1581.1,1581.0,0.7402]
[1745192037560,4.61649467,1581.2,1581.0,0.7402]
[1745192037561,3.35338096,1581.2,1581.0,0.7402]
[1745192037769,3.35338096,1581.2,1581.1,5.307]
[1745192038148,0.35338096,1581.2,1581.1,5.307]
[1745192038547,4.25651656,1581.3,1581.1,5.307]
[1745192039378,4.60989752,1581.3,1581.1,5.307]
[1745192040844,7.60989752,1581.3,1581.2,0.7402]
[1745192042778,8.07279791,1581.3,1581.1,5.307]
[1745192042980,8.07279791,1581.3,1581.1,6.0472]
[1745192043570,3.81628135,1581.3,1581.1,6.0472]
[1745192043764,3.46290039,1581.3,1581.1,6.0472]
[1745192045485,3.81699365,1581.3,1581.1,5.307]
[1745192045688,0.07905235,1581.2,1580.9,54.9292]
[1745192045857,5.13154216,1581.1,1580.9,54.189]
[1745192046058,9.95417598,1581.0,1580.9,54.189]
[1745192046287,3.98315856,1581.0,1580.9,59.495]
[1745192046489,5.47211801,1581.0,1580.9,59.495]
[1745192047492,11.79722869,1581.0,1580.9,54.189]
[1745192047673,12.57522869,1581.0,1580.9,59.495]
[1745192051905,20.21544044,1581.0,1580.9,59.495]
[1745192052070,20.13637514,1581.0,1580.9,59.495]
[1745192052399,3.0,1580.8,1580.6,54.185]
[1745192052588,3.07908104,1580.8,1580.7,5.306]
[1745192053225,3.4331743,1580.8,1580.7,5.306]
[1745192054238,3.906857,1580.8,1580.7,5.306]
[1745192055034,12.96436522,1580.8,1580.7,5.306]
[1745192055335,12.88528418,1580.8,1580.7,5.306]
[1745192059937,12.10728418,1580.8,1580.7,5.306]
[1745192060144,13.00276702,1580.8,1580.7,5.306]